bitfinex/quotes_BTCUSD_20250115
["timestamp","ask_amount","ask_price","bid_price","bid_amount"]
[1736928747630,0.09467345,97493.0,97492.0,0.00279298]
[1736928747837,0.11076412,97493.0,97492.0,0.00279298]
[1736928748068,0.11076412,97493.0,97492.0,0.00679298]
[1736928748276,0.11076412,97493.0,97492.0,0.00279298]
[1736928748610,0.11076412,97493.0,97492.0,0.00679298]
[1736928748952,0.11076412,97493.0,97492.0,0.00279298]
[1736928749161,0.11076412,97493.0,97492.0,0.00179298]
[1736928749391,0.11076412,97493.0,97492.0,0.00679298]
[1736928749592,0.11076412,97493.0,97492.0,0.00279298]
[1736928750065,0.11076412,97493.0,97492.0,0.00179298]
[1736928751607,0.11076412,97493.0,97492.0,0.00479298]
[1736928751807,0.11076412,97493.0,97492.0,0.00179298]
[1736928752190,0.11076412,97493.0,97492.0,0.00479298]
[1736928752393,0.11076412,97493.0,97492.0,0.00179298]
[1736928752654,0.09467345,97493.0,97492.0,0.00179298]
[1736928752860,0.11076465,97493.0,97492.0,0.00479298]
[1736928753071,0.09467345,97493.0,97492.0,0.00179298]
[1736928753262,0.09467345,97493.0,97492.0,0.00479298]
[1736928757346,0.01657345,97493.0,97492.0,0.00479298]
[1736928757556,0.01657345,97493.0,97492.0,0.10439298]
[1736928757787,0.00048352,97493.0,97492.0,0.10439298]
[1736928758196,0.00048352,97493.0,97492.0,0.10541856]
[1736928758407,0.00048352,97493.0,97492.0,0.59734298]
[1736928758620,0.00048352,97493.0,97492.0,0.5963174]
[1736928758829,0.00048352,97493.0,97492.0,0.6013174]
[1736928759038,0.00048352,97493.0,97492.0,0.5973174]
[1736928759251,0.00048352,97493.0,97492.0,0.6063174]
[1736928759406,0.00048352,97493.0,97492.0,0.5973174]
[1736928759829,0.00048352,97493.0,97492.0,0.94662563]
[1736928760027,0.01657103,97493.0,97492.0,0.94562563]
[1736928760324,0.01657103,97493.0,97492.0,0.95162563]
[1736928760932,0.01657103,97493.0,97492.0,1.00132563]
[1736928761141,0.00048352,97493.0,97492.0,1.00132563]
[1736928761553,0.00048352,97493.0,97492.0,1.64592563]
[1736928761961,0.00048352,97493.0,97492.0,1.74592563]
[1736928762531,4e-05,97515.0,97501.0,0.820504]
[1736928762737,4e-05,97515.0,97503.0,0.023]
[1736928762918,4e-05,97515.0,97514.0,0.553798]
[1736928763719,8.93e-05,97515.0,97514.0,0.553798]
[1736928764565,8.93e-05,97515.0,97514.0,0.57302242]
[1736928765159,0.01617387,97515.0,97514.0,0.57302242]
[1736928765467,8.93e-05,97515.0,97514.0,0.57302242]
[1736928766222,8.93e-05,97515.0,97514.0,0.57702242]
[1736928766456,0.00089183,97526.0,97514.0,0.57702242]
[1736928766627,0.00094113,97526.0,97523.0,0.205078]
[1736928768009,0.00094113,97526.0,97523.0,0.212078]
[1736928769381,0.00094113,97526.0,97523.0,0.214078]
[1736928769798,0.00094113,97526.0,97523.0,0.009]
[1736928771576,0.0813,97525.0,97523.0,0.009]
[1736928772705,0.254477,97524.0,97523.0,0.009]
[1736928772870,0.459555,97524.0,97514.0,0.3257]
[1736928773083,0.53924695,97524.0,97523.0,0.008]
[1736928773289,0.459555,97524.0,97523.0,0.01]
[1736928773665,0.459555,97524.0,97523.0,0.008]
[1736928773874,0.459555,97524.0,97514.0,0.32749256]
[1736928774073,0.459555,97524.0,97514.0,0.32849256]
[1736928774651,0.53924695,97524.0,97514.0,0.32849256]
[1736928774842,0.53924695,97524.0,97523.0,0.003]
[1736928775072,0.459555,97524.0,97523.0,0.003]
[1736928776054,0.254477,97524.0,97523.0,0.003]
[1736928776424,0.254477,97524.0,97523.0,0.001]
[1736928776825,0.254477,97524.0,97514.0,0.33049256]
[1736928777025,0.33416895,97524.0,97514.0,0.32749256]
[1736928777233,0.33416895,97524.0,97523.0,0.001]
[1736928777435,0.254477,97524.0,97523.0,0.005]
[1736928777625,0.254477,97524.0,97514.0,0.32749256]
[1736928777824,0.254477,97524.0,97514.0,0.33149256]
[1736928778022,0.33416895,97524.0,97514.0,0.33249256]
[1736928778329,0.33416895,97524.0,97514.0,0.32849256]
[1736928778471,0.33416895,97524.0,97523.0,0.004]
[1736928778687,0.254477,97524.0,97523.0,0.004]
[1736928779089,0.27056312,97524.0,97523.0,0.004]
[1736928779640,0.06548612,97524.0,97523.0,0.004]
[1736928779818,0.06548612,97524.0,97514.0,0.32749256]
[1736928779996,0.06548612,97524.0,97514.0,0.33249256]
[1736928780197,0.14517807,97524.0,97514.0,0.33249256]
[1736928780393,0.14517807,97524.0,97514.0,0.32749256]
[1736928780641,0.14517807,97524.0,97523.0,0.005]
[1736928780888,0.06548612,97524.0,97523.0,0.006]
[1736928781060,0.06548612,97524.0,97523.0,0.001]
[1736928781407,0.06548612,97524.0,97514.0,0.33249256]
[1736928781608,0.01608612,97524.0,97515.0,0.410192]
[1736928781812,0.01608612,97524.0,97521.0,0.023]
[1736928782022,0.00094113,97526.0,97522.0,0.205081]
[1736928782208,0.00094113,97526.0,97517.0,0.228092]
[1736928782430,0.00094113,97526.0,97523.0,0.205079]
[1736928783054,0.00094113,97526.0,97523.0,0.210079]
[1736928783263,0.00094113,97526.0,97523.0,0.205079]
[1736928783513,0.00094113,97526.0,97523.0,0.214079]
[1736928783635,0.00094113,97526.0,97523.0,0.215079]
[1736928784251,0.00094113,97526.0,97523.0,0.009]
[1736928784840,0.00094113,97526.0,97523.0,0.012]
[1736928785196,0.00094113,97526.0,97523.0,0.009]
[1736928787072,0.00094113,97526.0,97523.0,0.012]
[1736928788619,0.00094113,97526.0,97523.0,0.009]
[1736928788949,0.00094113,97526.0,97523.0,0.012]
[1736928789714,0.01702727,97526.0,97523.0,0.012]
[1736928789907,0.01702727,97526.0,97523.0,0.003]
[1736928790692,0.01702727,97526.0,97523.0,0.012]
[1736928791373,0.01702727,97526.0,97523.0,0.009]
[1736928791849,0.01702727,97526.0,97523.0,0.01]
[1736928792177,0.01702727,97526.0,97523.0,0.009]
[1736928792387,0.01702727,97526.0,97516.0,0.205092]
[1736928792781,0.00094113,97526.0,97523.0,0.005]
[1736928793124,0.00094113,97526.0,97516.0,0.205092]
[1736928793319,0.00094113,97526.0,97523.0,0.009]
[1736928793525,0.00094113,97526.0,97516.0,0.205092]
[1736928793966,0.00094113,97526.0,97523.0,0.006]
[1736928794163,0.00094113,97526.0,97523.0,0.003]
[1736928794677,0.00094113,97526.0,97516.0,0.205092]
[1736928794884,0.00094113,97526.0,97516.0,0.206092]
[1736928795477,0.00094113,97526.0,97516.0,0.205092]
[1736928795677,0.00094113,97526.0,97523.0,0.006]
[1736928795883,0.00094113,97526.0,97523.0,0.001]
[1736928796759,0.00094113,97526.0,97523.0,0.007]
[1736928797168,0.00094113,97526.0,97523.0,0.001]
[1736928797362,0.00094113,97526.0,97523.0,0.006]
[1736928798613,0.00094113,97526.0,97523.0,0.001]
[1736928798948,0.00094113,97526.0,97516.0,0.205092]
[1736928799120,0.00094113,97526.0,97523.0,0.006]
[1736928799352,0.00094113,97526.0,97523.0,0.007]
[1736928799726,0.00094113,97526.0,97523.0,0.001]
[1736928799929,0.01702687,97526.0,97523.0,0.001]
[1736928800572,0.01702687,97526.0,97516.0,0.205092]
[1736928800998,0.01702687,97526.0,97516.0,0.206092]
[1736928802126,0.00094113,97526.0,97516.0,0.206092]
[1736928802311,0.00094113,97526.0,97523.0,0.006]
[1736928802515,0.00094113,97526.0,97516.0,0.206092]
[1736928802717,0.08063308,97526.0,97516.0,0.206092]
[1736928802949,0.08063308,97526.0,97516.0,0.212092]
[1736928803139,0.08063308,97526.0,97516.0,0.206092]
[1736928803368,0.08063308,97526.0,97516.0,0.205592]
[1736928803581,0.08063308,97526.0,97523.0,0.006]
[1736928803754,0.08063308,97526.0,97516.0,0.204592]
[1736928803755,0.00094113,97526.0,97516.0,0.204592]
[1736928803952,0.00094113,97526.0,97523.0,0.001]
[1736928804676,0.00094113,97526.0,97516.0,0.210592]
[1736928805058,0.00094113,97526.0,97523.0,0.001]
[1736928805446,0.00094113,97526.0,97516.0,0.204592]
[1736928805866,0.00094113,97526.0,97523.0,0.006]
[1736928806070,0.00094113,97526.0,97516.0,0.204592]
[1736928806283,0.00094113,97526.0,97515.0,0.00179256]
[1736928806284,0.16032503,97526.0,97515.0,0.00179256]
[1736928806511,0.16032503,97526.0,97523.0,0.006]
[1736928806512,0.205078,97524.0,97523.0,0.006]
[1736928806633,0.584878,97524.0,97523.0,0.006]
[1736928806829,0.334894,97516.0,97515.0,0.00179256]
[1736928808255,0.334894,97516.0,97515.0,0.00279256]
[1736928808800,0.334894,97516.0,97515.0,0.00179256]
[1736928809364,0.334894,97516.0,97515.0,0.00579256]
[1736928809966,0.334894,97516.0,97515.0,0.00679256]
[1736928810197,0.334894,97516.0,97515.0,0.00779256]
[1736928811042,0.434894,97516.0,97515.0,0.00679256]
[1736928812151,0.584894,97516.0,97515.0,0.00679256]
[1736928812502,0.60098183,97516.0,97515.0,0.00679256]
[1736928812704,0.1,97512.0,97480.0,0.09128596]
[1736928812919,0.07969195,97490.0,97480.0,0.09128596]
[1736928813545,0.07969195,97490.0,97478.0,0.530874]
[1736928814228,0.07969195,97490.0,97478.0,0.53102199]
[1736928814834,0.07969195,97490.0,97480.0,0.002]
[1736928815190,0.0160898,97488.0,97478.0,0.53102199]
[1736928815841,0.07969195,97490.0,97478.0,0.53702199]
[1736928816045,0.01608982,97486.0,97478.0,0.53102199]
[1736928816448,0.01608982,97486.0,97478.0,0.53802199]
[1736928816701,0.01608982,97486.0,97478.0,0.53102199]
[1736928816846,0.01608982,97486.0,97478.0,0.53302199]
[1736928817052,0.01608982,97486.0,97478.0,0.53902199]
[1736928817247,0.01608982,97486.0,97478.0,0.53102199]
[1736928817578,0.01608982,97486.0,97478.0,0.53302199]
[1736928817936,0.01608982,97486.0,97478.0,0.32784799]
[1736928818136,0.01608982,97486.0,97485.0,0.205159]
[1736928819281,0.01608982,97486.0,97481.0,0.205168]
[1736928819619,0.01608982,97486.0,97485.0,0.009]
[1736928820036,0.01608982,97486.0,97481.0,0.410336]
[1736928820475,0.01608982,97486.0,97485.0,0.008]
[1736928821077,0.01608982,97486.0,97485.0,0.011]
[1736928821575,0.01608982,97486.0,97485.0,0.008]
[1736928822078,0.01608982,97486.0,97485.0,0.01]
[1736928822401,0.01608982,97486.0,97485.0,0.002]
[1736928822607,0.01608982,97486.0,97485.0,0.011]
[1736928822827,0.01608982,97486.0,97485.0,0.002]
[1736928823137,0.28482095,97500.0,97485.0,0.01]
[1736928823356,0.28482095,97500.0,97481.0,0.205168]
[1736928823575,0.48994995,97500.0,97481.0,0.205168]
[1736928823784,0.48994995,97500.0,97485.0,0.009]
[1736928823991,0.48994995,97500.0,97481.0,0.205168]
[1736928824215,0.48994995,97500.0,97485.0,0.002]
[1736928824440,0.205139,97495.0,97485.0,0.002]
[1736928824776,0.205139,97495.0,97481.0,0.205168]
[1736928824966,0.205129,97500.0,97485.0,0.205158]
[1736928825109,0.205129,97500.0,97485.0,0.206158]
[1736928825315,0.205129,97500.0,97485.0,0.207158]
[1736928825494,0.205129,97500.0,97485.0,0.206158]
[1736928826119,0.28482095,97500.0,97485.0,0.206158]
[1736928828219,0.205137,97496.0,97485.0,0.207158]
[1736928828434,0.205137,97496.0,97485.0,0.206158]
[1736928828748,0.205137,97496.0,97485.0,0.208158]
[1736928829382,0.205137,97496.0,97485.0,0.206158]
[1736928829782,0.205145,97492.0,97485.0,0.005]
[1736928829996,0.205145,97492.0,97485.0,0.004]
[1736928830472,0.41029,97492.0,97485.0,0.005]
[1736928830805,0.41029,97492.0,97485.0,0.004]
[1736928831225,0.41029,97492.0,97485.0,0.006]
[1736928831382,0.205145,97492.0,97485.0,0.006]
[1736928831810,0.205145,97492.0,97479.0,0.0817]
[1736928832207,0.01608985,97494.0,97485.0,0.004]
[1736928832208,0.410307,97488.0,97485.0,0.004]
[1736928832464,0.410307,97488.0,97478.0,0.32670189]
[1736928832842,0.410307,97488.0,97485.0,0.005]
[1736928833044,0.410307,97488.0,97478.0,0.32670189]
[1736928833558,0.410307,97488.0,97485.0,0.002]
[1736928834125,0.410307,97488.0,97478.0,0.32670189]
[1736928834535,0.205153,97488.0,97478.0,0.32870189]
[1736928834974,0.205153,97488.0,97485.0,0.006]
[1736928835371,0.205153,97488.0,97480.0,0.0008539]
[1736928836153,0.205153,97488.0,97485.0,0.007]
[1736928836344,0.205153,97488.0,97480.0,0.0008539]
[1736928836921,0.205153,97488.0,97480.0,0.0068539]
[1736928837679,0.205153,97488.0,97485.0,0.002]
[1736928838227,0.205153,97488.0,97480.0,0.0068539]
[1736928838563,0.205153,97488.0,97480.0,0.0008539]
[1736928838772,0.205153,97488.0,97480.0,0.0028539]
[1736928839111,0.205153,97488.0,97485.0,0.006]
[1736928839345,0.205153,97488.0,97480.0,0.0028539]
[1736928839485,0.410307,97488.0,97480.0,0.0028539]
[1736928839695,0.410307,97488.0,97480.0,0.0088539]
[1736928840676,0.410307,97488.0,97480.0,0.0068539]
[1736928841024,0.410307,97488.0,97485.0,0.002]
[1736928841649,0.410307,97488.0,97480.0,0.0068539]
[1736928841650,0.205165,97483.0,97480.0,0.0068539]
[1736928841861,0.205165,97483.0,97480.0,0.0088539]
[1736928842085,0.205153,97488.0,97480.0,0.0088539]
[1736928842430,0.205153,97488.0,97480.0,0.0008539]
[1736928842791,0.205153,97488.0,97485.0,0.006]
[1736928842991,0.205153,97488.0,97480.0,0.0008539]
[1736928843390,0.205153,97488.0,97480.0,0.0068539]
[1736928844229,0.205153,97488.0,97485.0,0.002]
[1736928844851,0.205153,97488.0,97485.0,0.006]
[1736928844989,0.410307,97488.0,97485.0,0.006]
[1736928845196,0.410307,97488.0,97480.0,0.0028539]
[1736928845705,0.410307,97488.0,97485.0,0.006]
[1736928846134,0.410307,97488.0,97485.0,0.008]
[1736928846281,0.410307,97488.0,97485.0,0.002]
[1736928847666,0.410307,97488.0,97480.0,0.0008539]
[1736928847866,0.048,97492.0,97480.0,0.0068539]
[1736928848098,0.205165,97483.0,97480.0,0.0008539]
[1736928848530,0.205157,97487.0,97480.0,0.0008539]
[1736928848926,0.205157,97487.0,97480.0,0.0048539]
[1736928849180,0.410314,97487.0,97480.0,0.0048539]
[1736928849382,0.410314,97487.0,97480.0,0.0018539]
[1736928849586,0.410314,97487.0,97480.0,0.0058539]
[1736928849960,0.205157,97487.0,97480.0,0.0058539]
[1736928850969,0.205157,97487.0,97480.0,0.0008539]
[1736928851189,0.205157,97487.0,97480.0,0.0048539]
[1736928851386,0.205157,97487.0,97480.0,0.0058539]
[1736928853319,0.410313,97487.0,97480.0,0.0058539]
[1736928855101,0.205156,97487.0,97480.0,0.0058539]
[1736928859053,0.00179319,97488.0,97480.0,0.0058539]
[1736928859478,0.00179319,97488.0,97483.0,0.0819]
[1736928859688,0.00179319,97488.0,97487.0,0.0819]
[1736928859884,0.00179319,97488.0,97487.0,0.08292565]
[1736928860484,0.00179319,97488.0,97487.0,0.0819]
[1736928860853,0.00179319,97488.0,97481.0,0.2972409]
[1736928861050,0.00179319,97488.0,97487.0,0.0025]
[1736928861795,0.00179319,97488.0,97487.0,0.0105]
[1736928862191,0.00179319,97488.0,97487.0,0.0025]
[1736928862411,0.00179319,97488.0,97487.0,0.0045]
[1736928862992,0.00179319,97488.0,97487.0,0.0025]
[1736928863395,0.00179319,97488.0,97487.0,0.0105]
[1736928863740,0.00179319,97488.0,97487.0,0.0035]
[1736928863944,0.00179319,97488.0,97487.0,0.0075]
[1736928864459,0.00179319,97488.0,97487.0,0.0035]
[1736928865204,0.00179319,97488.0,97487.0,0.0105]
[1736928865409,0.00179319,97488.0,97487.0,0.0095]
[1736928865612,0.00179319,97488.0,97487.0,0.0115]
[1736928866436,0.00179319,97488.0,97487.0,0.0045]
[1736928866647,0.00179319,97488.0,97487.0,0.0025]
[1736928866874,0.00179319,97488.0,97487.0,0.0065]
[1736928867080,0.00179319,97488.0,97487.0,0.0035]
[1736928867486,0.00179319,97488.0,97487.0,0.0075]
[1736928867656,0.01788311,97488.0,97487.0,0.0075]
[1736928868204,0.01788311,97488.0,97487.0,0.0035]
[1736928868605,0.01775964,97488.0,97487.0,0.0025]
[1736928868765,0.01775964,97488.0,97487.0,0.0035]
[1736928868950,0.00166972,97488.0,97487.0,0.0035]
[1736928869364,0.00166972,97488.0,97487.0,0.0025]
[1736928869578,0.00166972,97488.0,97487.0,0.0065]
[1736928869785,0.00166972,97488.0,97487.0,0.0025]
[1736928870166,0.00166972,97488.0,97487.0,0.0075]
[1736928870499,0.00166972,97488.0,97487.0,0.0035]
[1736928870911,0.00166972,97488.0,97487.0,0.0075]
[1736928871112,0.00016972,97488.0,97487.0,0.0075]
[1736928871904,0.00016972,97488.0,97487.0,0.0065]
[1736928872550,0.00016972,97488.0,97487.0,0.0075]
[1736928879097,0.00016972,97488.0,97487.0,0.0065]
[1736928879293,0.00016972,97488.0,97487.0,0.0025]
[1736928879464,0.00016972,97488.0,97487.0,0.0085]
[1736928880030,0.00016972,97488.0,97487.0,0.0075]
[1736928880300,0.00016972,97488.0,97487.0,0.0095]
[1736928882410,0.00016972,97488.0,97487.0,0.0103539]
[1736928883881,0.00016972,97488.0,97487.0,0.0053539]
[1736928884124,0.00016972,97488.0,97487.0,0.0103539]
[1736928884956,0.00016972,97488.0,97487.0,0.0083539]
[1736928885307,0.00016972,97488.0,97487.0,0.0864539]
[1736928885835,0.00016972,97488.0,97487.0,0.0794539]
[1736928886056,0.00016972,97488.0,97487.0,0.08047963]
[1736928886226,0.00016972,97488.0,97487.0,0.08747951]
[1736928886670,0.00016972,97488.0,97487.0,0.0854539]
[1736928887215,0.00016972,97488.0,97487.0,0.0794539]
[1736928887418,0.00016972,97488.0,97487.0,0.0884539]
[1736928887656,0.00016972,97488.0,97487.0,0.0123539]
[1736928887863,0.00016972,97488.0,97487.0,0.3533167]
[1736928888232,0.00016972,97488.0,97487.0,0.3553167]
[1736928888581,0.00016972,97488.0,97487.0,0.3443167]
[1736928888780,0.00016972,97488.0,97487.0,0.3523167]
[1736928889012,0.00016972,97488.0,97487.0,0.0133539]
[1736928889242,0.00016972,97488.0,97487.0,0.0053539]
[1736928889445,0.00016972,97488.0,97487.0,0.0093539]
[1736928890037,0.00016972,97488.0,97487.0,0.0053539]
[1736928890202,0.00016972,97488.0,97487.0,0.0113539]
[1736928890605,0.0162592,97488.0,97487.0,0.0113539]
[1736928891578,0.0162592,97488.0,97487.0,0.0093539]
[1736928891730,0.0162592,97488.0,97487.0,0.0113539]
[1736928892115,0.2214122,97488.0,97487.0,0.0113539]
[1736928892333,0.2214122,97488.0,97487.0,0.0093539]
[1736928892512,0.2214122,97488.0,97487.0,0.0103539]
[1736928892741,0.2196412,97488.0,97487.0,0.0103539]
[1736928892913,0.205153,97488.0,97487.0,0.0103539]
[1736928893112,0.205153,97488.0,97487.0,0.0033539]
[1736928893528,0.205153,97488.0,97487.0,0.0053539]
[1736928893739,0.205153,97488.0,97487.0,0.0083539]
[1736928893943,0.20694619,97488.0,97487.0,0.0053539]
[1736928894215,0.20694619,97488.0,97487.0,0.0103539]
[1736928895356,0.20694619,97488.0,97487.0,0.0083539]
[1736928895772,0.20694619,97488.0,97487.0,0.0043539]
[1736928896161,0.20694619,97488.0,97487.0,0.0063539]
[1736928896599,0.00179319,97488.0,97487.0,0.0073539]
[1736928897096,0.00179319,97488.0,97487.0,0.0063539]
[1736928897293,0.00179319,97488.0,97487.0,0.0033539]
[1736928897497,0.00179319,97488.0,97487.0,0.0043539]
[1736928897722,0.00179319,97488.0,97487.0,0.0073539]
[1736928898381,0.01788297,97488.0,97487.0,0.0073539]
[1736928898758,0.22303597,97488.0,97487.0,0.0063539]
[1736928898958,0.22303597,97488.0,97487.0,0.0033539]
[1736928899141,0.20694619,97488.0,97487.0,0.0073539]
[1736928899542,0.20694619,97488.0,97487.0,0.0043539]
[1736928899724,0.20694619,97488.0,97487.0,0.0063539]
[1736928899936,0.20694619,97488.0,97487.0,0.0073539]
[1736928900566,0.00179319,97488.0,97487.0,0.0073539]
[1736928901773,0.00179319,97488.0,97487.0,0.0063539]
[1736928902035,0.00179319,97488.0,97487.0,0.0033539]
[1736928902407,0.00179319,97488.0,97487.0,0.0063539]
[1736928902816,0.00179319,97488.0,97487.0,0.0073539]
[1736928903092,0.00179319,97488.0,97487.0,0.0063539]
[1736928903472,0.00179319,97488.0,97487.0,0.0073539]
[1736928904060,0.15372011,97488.0,97487.0,0.0073539]
[1736928904283,0.23542011,97488.0,97487.0,0.0073539]
[1736928904500,0.26896212,97488.0,97487.0,0.0073539]
[1736928904933,0.51896212,97488.0,97487.0,0.0063539]
[1736928905099,0.51896212,97488.0,97487.0,0.0033539]
[1736928905314,0.48542011,97488.0,97487.0,0.0033539]
[1736928906460,0.7062,97481.0,97480.0,0.0008539]
[1736928906664,2.52648992,97481.0,97480.0,0.0008539]
[1736928906874,2.50487992,97481.0,97480.0,0.0008539]
[1736928907070,2.16285992,97481.0,97480.0,0.0008539]
[1736928907295,2.26708684,97481.0,97480.0,0.0008539]
[1736928907521,2.26708684,97481.0,97478.0,7.9e-07]
[1736928907522,0.2,97479.0,97478.0,7.9e-07]
[1736928907727,0.4298,97471.0,97470.0,0.02816618]
[1736928907931,1.01561592,97471.0,97470.0,0.02821548]
[1736928908343,1.11561592,97471.0,97470.0,0.02821548]
[1736928908568,2.50202684,97471.0,97470.0,0.02821548]
[1736928908770,2.64384181,97471.0,97470.0,0.02821548]
[1736928909674,2.66684181,97471.0,97470.0,0.01126147]
[1736928909950,2.56271277,97471.0,97470.0,0.01126147]
[1736928910337,0.305216,97458.0,97449.0,0.00179109]
[1736928910511,0.78816622,97458.0,97457.0,0.00190435]
[1736928911255,0.81116622,97458.0,97457.0,3.5e-07]
[1736928911458,0.91116622,97458.0,97457.0,3.5e-07]
[1736928912787,0.91116622,97458.0,97417.0,0.20166182]
[1736928912788,0.1,97445.0,97417.0,0.20166182]
[1736928913009,0.20528,97428.0,97425.0,0.00049365]
[1736928913209,0.10422692,97427.0,97425.0,0.00049365]
[1736928916136,0.205284,97426.0,97425.0,0.00649365]
[1736928916378,0.30951092,97426.0,97425.0,0.00349365]
[1736928916942,0.30951092,97426.0,97425.0,0.00149365]
[1736928917140,0.30951092,97426.0,97425.0,0.00234745]
[1736928917348,0.30951092,97426.0,97425.0,0.0028538]
[1736928917762,0.30951092,97426.0,97425.0,0.0098538]
[1736928917963,0.30951092,97426.0,97425.0,0.0078538]
[1736928918162,0.30951092,97426.0,97425.0,0.0098538]
[1736928918374,0.3413332,97426.0,97425.0,0.0098538]
[1736928919009,0.3413332,97426.0,97425.0,0.0028538]
[1736928919212,0.4216332,97426.0,97425.0,0.0088538]
[1736928919583,0.4216332,97426.0,97425.0,0.0028538]
[1736928919784,0.4216332,97426.0,97425.0,0.0068538]
[1736928920197,0.4216332,97426.0,97425.0,0.0028538]
[1736928920455,0.4216332,97426.0,97425.0,0.0008538]
[1736928920619,0.205314,97412.0,97402.0,0.0774538]
[1736928920830,0.10422692,97411.0,97402.0,0.0774538]
[1736928921609,0.410588,97421.0,97403.0,0.410664]
[1736928921843,0.205298,97419.0,97403.0,0.41516613]
[1736928922048,0.10422692,97418.0,97403.0,0.41516613]
[1736928922208,0.10422692,97418.0,97407.0,0.205322]
[1736928922480,0.205302,97417.0,97404.0,0.20993916]
[1736928922655,0.10422692,97416.0,97408.0,0.0046091]
[1736928922858,0.10422692,97416.0,97404.0,0.20533]
[1736928923057,0.01610161,97415.0,97409.0,0.00460908]
[1736928923327,0.01610161,97415.0,97404.0,0.20533]
[1736928923328,0.10422692,97414.0,97404.0,0.20533]
[1736928923478,0.10422692,97414.0,97410.0,0.00460906]
[1736928923899,0.10422692,97414.0,97407.0,0.004]
[1736928924473,0.10422692,97414.0,97408.0,0.0046091]
[1736928925093,0.10422692,97414.0,97410.0,0.002]
[1736928925313,0.10422692,97414.0,97411.0,0.00460905]
[1736928925857,0.10422692,97414.0,97404.0,0.20533]
[1736928926207,0.10422692,97414.0,97408.0,0.005]
[1736928926388,0.205294,97421.0,97408.0,0.21032]
[1736928926602,0.10422692,97420.0,97410.0,0.075]
[1736928926801,0.10422692,97420.0,97411.0,0.005]
[1736928927024,0.10422692,97420.0,97411.0,0.00960905]
[1736928927225,0.10422692,97420.0,97411.0,0.00460905]
[1736928927827,4.927e-05,97426.0,97412.0,0.205313]
[1736928928035,0.205286,97425.0,97414.0,0.205309]
[1736928928550,0.205286,97425.0,97415.0,0.00460898]
[1736928930300,0.205286,97425.0,97415.0,0.00860898]
[1736928930900,0.205286,97425.0,97415.0,0.005]
[1736928931225,0.205286,97425.0,97416.0,0.00460896]
[1736928931453,0.0161001,97423.0,97416.0,0.00460896]
[1736928932404,0.0161001,97423.0,97417.0,0.280302]
[1736928932621,0.0161001,97423.0,97417.0,0.075]
[1736928932834,0.0161001,97423.0,97418.0,0.00460893]
[1736928933577,0.0161001,97423.0,97417.0,0.05960893]
[1736928934301,0.205288,97425.0,97417.0,0.05960893]
[1736928935299,0.205288,97425.0,97418.0,0.005]
[1736928935377,0.205288,97425.0,97417.0,0.05960893]
[1736928935557,0.205288,97425.0,97417.0,0.06060893]
[1736928935790,0.205288,97425.0,97417.0,0.06460893]
[1736928935995,0.205288,97425.0,97417.0,0.06060893]
[1736928936392,0.205288,97425.0,97418.0,0.01360396]
[1736928937140,0.205288,97425.0,97418.0,0.004]
[1736928937340,0.205288,97425.0,97412.0,0.0815]
[1736928937542,0.0160999,97424.0,97418.0,0.001]
[1736928938145,0.0160999,97424.0,97412.0,0.0815]
[1736928938499,0.20529,97423.0,97412.0,0.0825]
[1736928938703,0.20529,97423.0,97417.0,0.004]
[1736928938704,0.205294,97421.0,97417.0,0.004]
[1736928938913,0.10422692,97420.0,97412.0,0.001]
[1736928939118,0.10422692,97420.0,97395.0,0.0471]
[1736928939119,0.16504235,97420.0,97395.0,0.0471]
[1736928939307,0.205309,97414.0,97398.0,0.0815]
[1736928939447,0.205313,97412.0,97392.0,0.0815]
[1736928939654,0.30953992,97412.0,97392.0,0.0815]
[1736928940059,0.4191208,97412.0,97392.0,0.0815]
[1736928940907,0.38493992,97412.0,97392.0,0.0815]
[1736928941303,0.38493992,97412.0,97402.0,0.0008546]
[1736928941485,0.40104224,97412.0,97402.0,0.0008546]
[1736928942302,0.40104224,97412.0,97411.0,0.0058544]
[1736928942703,0.40104224,97412.0,97411.0,0.0008544]
[1736928942903,0.40104224,97412.0,97411.0,0.0018544]
[1736928943982,0.77151142,97412.0,97411.0,0.0018544]
[1736928944336,0.7554091,97412.0,97411.0,0.0018544]
[1736928945337,0.7564091,97412.0,97411.0,0.0008544]
[1736928945738,0.7614091,97412.0,97411.0,0.0008544]
[1736928946095,0.7574091,97412.0,97411.0,0.0008544]
[1736928946400,0.7634091,97412.0,97411.0,0.0008544]
[1736928946614,0.7614091,97412.0,97411.0,0.0008544]
[1736928946815,0.7654091,97412.0,97411.0,0.0008544]
[1736928947145,0.7554091,97412.0,97411.0,0.0008544]
[1736928947517,0.8554091,97412.0,97411.0,0.0008544]
[1736928947724,0.8554091,97412.0,97371.0,0.07305239]
[1736928947725,0.1,97403.0,97371.0,0.07305239]
[1736928947933,0.205376,97382.0,97373.0,0.00073593]
[1736928948065,0.30960292,97382.0,97373.0,0.00073593]
[1736928948711,0.01610546,97380.0,97373.0,0.00073593]
[1736928948915,0.01610546,97380.0,97374.0,0.00960295]
[1736928949121,0.01610546,97380.0,97374.0,0.00975107]
[1736928950462,0.01610546,97380.0,97374.0,0.00314812]
[1736928950886,0.01610546,97380.0,97375.0,0.205391]
[1736928951060,0.01710546,97380.0,97375.0,0.205391]
[1736928951767,0.01710546,97380.0,97374.0,0.01114812]
[1736928951908,0.01710546,97380.0,97374.0,0.00814812]
[1736928952327,0.10422692,97382.0,97374.0,0.00214812]
[1736928952734,0.10422692,97382.0,97374.0,0.00714812]
[1736928952952,0.10422692,97382.0,97374.0,0.00214812]
[1736928953353,0.001,97380.0,97374.0,0.00714812]
[1736928953588,0.001,97380.0,97374.0,0.00214812]
[1736928954191,0.001,97380.0,97374.0,0.00814812]
[1736928955247,0.205387,97377.0,97374.0,0.00814812]
[1736928955443,0.205391,97375.0,97374.0,0.00814812]
[1736928955645,0.30961792,97375.0,97374.0,0.00814812]
[1736928956150,0.30961792,97375.0,97374.0,0.00014812]
[1736928956378,0.30961792,97375.0,97374.0,0.00714812]
[1736928956523,0.30961792,97375.0,97374.0,0.00214812]
[1736928956950,0.32572444,97375.0,97374.0,0.00714812]
[1736928957148,0.32672444,97375.0,97374.0,0.00714812]
[1736928957351,0.32572444,97375.0,97374.0,0.00014812]
[1736928957704,0.32672444,97375.0,97374.0,0.00614812]
[1736928958468,0.32672444,97375.0,97374.0,0.00814812]
[1736928958877,0.32672444,97375.0,97374.0,0.00614812]